[Event "16th HSG Open-A 2022"]
[Site "Hilversum"]
[Date "2022.06.17"]
[Round "2.8"]
[White "Pham, Khoi"]
[Black "Schilstra, Laurens"]
[Result "1-0"]
[ECO "B81"]
[WhiteElo "2291"]
[BlackElo "1963"]
[Annotator "TA"]
[PlyCount "67"]
[EventDate "2022.06.17"]
[EventCountry "NED"]
[SourceTitle "playchess.com"]
[Source "ChessBase"]
[SourceQuality "1"]
[TimeControl "6600+10"]

{[%evp 13,66,37,29,0,16,0,53,0,40,-31,-17,-27,0,0,0,0,9,0,173,179,355,37,355,350,419,400,721,710,709,704,900,900,890,855,1722,420,29984,29985,29985,29986,29986,29986,29989,29990,29996,29997,29997,29997,29997,29998,29998,29999,29999,29999,29999]} 1. e4 {[%emt 0:00:02]} c5 {[%emt 0:00:11]} 2. Nf3 {[%emt 0:00:04]} e6 {[%emt 0:00:12]} 3. d4 {[%emt 0:00:05]} cxd4 {[%emt 0:00:15]} 4. Nxd4 Nf6 {[%emt 0:00:08]} 5. Nc3 {[%emt 0:00:10]} d6 {[%emt 0:00:10]} 6. g4 {[%emt 0:00:31]} h6 {[%emt 0:01:12]} 7. h4 {[%emt 0:00:37]} Nc6 {[%emt 0:02:05]} 8. Nxc6 {[%emt 0:03:15] B81: Sicilian Scheveningen: Keres Attack.} bxc6 {[%emt 0:00:09]} 9. Qf3 {[%emt 0:00:06]} Nd7 {[%emt 0:06:43] [#]} (9... Qb6 $11) 10. Be3 $146 {[%emt 0:01:57]} (10. Bd2 $14) ({Predecessor:} 10. g5 hxg5 11. Bxg5 Be7 12. Bxe7 Qxe7 13. O-O-O Rh6 14. Qg3 e5 15. Qxg7 Qf6 16. Qxf6 Rxf6 {½-½ (44) Radovic,J (2415)-Milosevic,Z (2208) Kragujevac 2018}) 10... Qa5 {[%emt 0:04:44]} (10... Rb8 $5 {[%cal Rb8b2]}) 11. g5 {[%emt 0:18:28]} ({White should try} 11. Bd2 $14) 11... Ne5 {[%emt 0:06:28]} 12. Qg2 {[%emt 0:01:08]} Qb4 {[%emt 0:02:34]} 13. Bd2 {[%emt 0:04:21]} Qxb2 {[%emt 0:02:38]} 14. Rb1 {[%emt 0:00:07]} Qxc2 {[%emt 0:01:19] Hoping for ...hxg5.} 15. gxh6 {[%emt 0:02:43]} gxh6 $2 {[%emt 0:05:08]} (15... Rxh6 $11 16. h5 Nd7) 16. Rh3 $1 $18 {[%emt 0:02:02][%cal Bh1h3,Bh3e3,Be3e6][%mdl 32] Strongly threatening f4.} d5 $2 {[%emt 0:06:10] [#]} (16... Be7) 17. exd5 $2 {[%emt 0:02:49]} (17. Rc1 $1 $18 {[%cal Rc1c2]} Qb2 18. exd5) 17... cxd5 $2 {[%emt 0:00:22][%mdl 8192] Black cannot hold the game after this.} (17... exd5 $14 18. Re3 Qf5) 18. f4 {[%emt 0:01:28]} Qf5 {[%emt 0:01:10]} 19. fxe5 {[%emt 0:00:51]} Bd7 {[%emt 0:02:23]} (19... Bc5 $142 20. Bb5+ Bd7 21. Bxd7+ Kxd7) 20. Bd3 {[%emt 0:04:45]} Qxe5+ {[%emt 0:00:40]} 21. Re3 {[%emt 0:00:06]} Qh5 {[%emt 0:02:36]} 22. Nxd5 {[%emt 0:06:28] Active counter play!} Qxh4+ {[%emt 0:00:50]} 23. Kf1 {[%emt 0:02:04] White threatens Nc7+ and mate.} Bc6 {[%emt 0:06:33] [#]} 24. Be1 {[%emt 0:11:29]} (24. Rb7 $142 $3 {[%mdl 512] Nc7+ would kill now.} Qf4+ 25. Nxf4 Bxg2+ 26. Kxg2 Rg8+ 27. Kf3) 24... Qd8 {[%emt 0:03:42] [#] Prevents Nc7+.} (24... Qg5 $18) 25. Rxe6+ $3 {[%emt 0:05:14][%mdl 512] White mates.} fxe6 {[%emt 0:00:10]} 26. Qg6+ {[%emt 0:00:04]} Kd7 {[%emt 0:00:12]} 27. Nf6+ {[%emt 0:00:10]} Kd6 {[%emt 0:02:17]} 28. Bb4+ {[%emt 0:00:13]} Ke5 {[%emt 0:00:32]} 29. Re1+ {[%emt 0:00:22][%mdl 64] Skewer} Kd4 {[%emt 0:00:16] [#]} 30. Re4+ $1 {[%emt 0:00:24][%mdl 512]} Kxd3 {[%emt 0:00:17]} 31. Qg3+ {[%emt 0:00:06]} Kc2 {[%emt 0:00:15]} 32. Qb3+ {[%emt 0:00:18]} Kc1 {[%emt 0:00:08]} 33. Re1+ {[%emt 0:00:07]} Qd1 {[%emt 0:00:03]} 34. Rxd1# {[%emt 0:00:07] Weighted Error Value: White=0.45/Black=0.95} 1-0

[Event "16th HSG Open-A 2022"]
[Site "Hilversum"]
[Date "2022.06.17"]
[Round "2.9"]
[White "Wagenvoorde, Guido"]
[Black "Grutter, Tim"]
[Result "1/2-1/2"]
[ECO "E74"]
[WhiteElo "2090"]
[BlackElo "2241"]
[Annotator "TA"]
[PlyCount "71"]
[EventDate "2022.06.17"]
[EventCountry "NED"]
[SourceTitle "playchess.com"]
[Source "ChessBase"]
[SourceQuality "1"]
[TimeControl "6600+10"]

{[%evp 24,71,0,0,6,0,8,0,67,12,27,41,41,15,32,47,52,46,64,44,44,49,44,15,18,19,45,45,72,44,113,85,90,45,141,66,70,41,32,32,39,25,25,25,25,14,32,25,40,0]} 1. d4 {[%emt 0:02:07]} Nf6 {[%emt 0:00:35]} 2. c4 {[%emt 0:00:09]} g6 {[%emt 0:00:06]} 3. Nc3 {[%emt 0:00:07]} Bg7 {[%emt 0:00:04]} 4. e4 {[%emt 0:00:06]} d6 {[%emt 0:00:03]} 5. Be2 {[%emt 0:00:06]} O-O {[%emt 0:00:08]} 6. Bg5 {[%emt 0:00:08]} c5 {[%emt 0:06:30]} 7. d5 {[%emt 0:00:10]} h6 {[%emt 0:00:33]} 8. Be3 {[%emt 0:00:08]} e6 {[%emt 0:00:20]} 9. Qd2 {[%emt 0:00:08]} exd5 {[%emt 0:00:17]} 10. exd5 {[%emt 0:00:08]} Kh7 {[%emt 0:01:16]} 11. h3 {[%emt 0:00:10]} Re8 {[%emt 0:03:35]} 12. Nf3 {[%emt 0:00:25]} Bf5 {[%emt 0:04:01]} 13. O-O {[%emt 0:00:57]} Ne4 {[%emt 0:05:57] E74: King's Indian: Averbakh Variation: 6...c5.} 14. Nxe4 {[%emt 0:00:08]} Bxe4 {[%emt 0:00:11]} 15. Rae1 {[%emt 0:02:23]} a6 {[%emt 0:06:02] [#]} (15... Nd7 $11) 16. b3 $146 {[%emt 0:02:59]} (16. Bf4 $14) ({Predecessor:} 16. Bf4 Qb6 17. Nh2 g5 18. Bg4 f5 19. Bh5 Rf8 20. f3 gxf4 21. fxe4 Qxb2 22. Qxb2 Bxb2 23. exf5 {0-1 (36) Santos,A (2244)-Andrade,L (2230) Odivelas 2001}) 16... Bxf3 {[%emt 0:09:22]} 17. Bxf3 {[%emt 0:01:30]} Nd7 {[%emt 0:01:07]} 18. Be2 {[%emt 0:16:38]} Nf6 {[%emt 0:02:19]} 19. Bd3 {[%emt 0:04:32]} Qd7 {[%emt 0:05:53]} 20. a4 {[%emt 0:10:04]} Re7 {[%emt 0:06:32]} 21. Bf4 {[%emt 0:02:12]} Rae8 {[%emt 0:01:16]} 22. Rxe7 {[%emt 0:02:32]} Qxe7 {[%emt 0:00:33]} 23. Rd1 {[%emt 0:07:58]} Nh5 {[%emt 0:07:09]} 24. Be3 {[%emt 0:09:56]} Qh4 {[%emt 0:04:39]} 25. b4 {[%emt 0:11:29]} Bd4 {[%emt 0:07:09]} 26. bxc5 {[%emt 0:03:43] [#] Hoping for Bxd4.} ({Much weaker is} 26. Bxh6 cxb4 27. Be3 Bxe3 28. fxe3 a5 $17) 26... dxc5 {[%emt 0:01:19]} (26... Bxe3 $1 $14 27. fxe3 dxc5) 27. Bxd4 {[%emt 0:10:05]} Qxd4 {[%emt 0:01:38]} 28. Bf1 {[%emt 0:00:09]} (28. Qa5 {looks sharper.} Qb2 29. Qc7 Kg7 30. Rb1) 28... Qe5 {[%emt 0:03:28] [#]} (28... Qxd2 $14 29. Rxd2 Kg7) 29. g3 {[%emt 0:03:54]} ({White should play} 29. Qa5 $1 $16) 29... Ng7 {[%emt 0:05:46][%cal Bh5g7,Bg7e8,Be8d6][%mdl 32]} 30. Rb1 {[%emt 0:06:29]} Re7 {[%emt 0:01:22]} 31. Bd3 {[%emt 0:02:02]} Ne8 {[%emt 0:02:16]} 32. a5 {[%emt 0:00:52]} Nd6 {[%emt 0:01:39]} 33. Qc2 {[%emt 0:00:21]} Kg7 {[%emt 0:03:57]} 34. Kg2 {[%emt 0:00:07]} Qd4 {[%emt 0:02:37]} 35. Rd1 {[%emt 0:00:08]} Qe5 {[%emt 0:01:18]} 36. Rb1 {[%emt 0:00:07] Weighted Error Value: White=0.17 (very precise) /Black=0.20 (precise)} 1/2-1/2

[Event "16th HSG Open-A 2022"]
[Site "Hilversum"]
[Date "2022.06.17"]
[Round "2.10"]
[White "De Groote, Ewoud"]
[Black "Van Orsouw, Theo"]
[Result "1-0"]
[ECO "B72"]
[WhiteElo "2230"]
[BlackElo "1855"]
[Annotator "TA"]
[PlyCount "57"]
[EventDate "2022.06.17"]
[EventCountry "NED"]
[SourceTitle "playchess.com"]
[Source "ChessBase"]
[SourceQuality "1"]
[TimeControl "6600+10"]

{[%evp 17,57,5,8,12,11,8,8,0,20,24,10,30,53,0,100,-8,92,88,66,-31,0,0,0,0,14,0,156,155,155,171,142,126,234,197,272,267,368,367,669,649,2982,2059]} 1. e4 {[%emt 0:00:04]} c5 {[%emt 0:02:16]} 2. Nf3 {[%emt 0:00:03]} d6 {[%emt 0:00:10]} 3. d4 {[%emt 0:00:03]} cxd4 {[%emt 0:00:07]} 4. Nxd4 {[%emt 0:00:03]} Nf6 {[%emt 0:00:13]} 5. Nc3 {[%emt 0:00:03]} g6 {[%emt 0:00:07]} 6. Be3 {[%emt 0:00:23]} Bg7 {[%emt 0:00:06]} 7. Be2 {[%emt 0:00:40]} O-O {[%emt 0:00:22]} 8. h4 {[%emt 0:01:19]} h5 {[%emt 0:00:25]} 9. Qd2 {[%emt 0:00:16]} Nc6 {[%emt 0:00:22]} 10. O-O-O {[%emt 0:02:16] B72: Sicilian Dragon: 6 Be3, lines with h3+Bc4 and sidelines.} d5 {[%emt 0:02:18]} 11. Nxc6 {[%emt 0:14:09]} bxc6 {[%emt 0:00:08]} 12. exd5 {[%emt 0:14:22] The position is equal.} Nxd5 {[%emt 0:00:29]} 13. Bd4 {[%emt 0:09:09] [#] Black must now prevent Bxg7.} e5 $146 {[%emt 0:07:41]} ({Predecessor:} 13... Bxd4 14. Qxd4 Qb6 15. Nxd5 cxd5 16. Bf3 e6 17. c4 Bb7 18. cxd5 Bxd5 19. Bxd5 exd5 {1-0 (47) Carlsson,A (2455)-Johnson,M (2560) Sweden 1994}) 14. Bc5 {[%emt 0:00:12][%csl LRd5,LRf8]} Be6 {[%emt 0:01:05]} 15. Ne4 {[%emt 0:07:16]} ({Much weaker is} 15. Bxf8 Qxf8 16. Kb1 (16. Nxd5 cxd5 17. Qa5 Rb8 $11) 16... Rb8 17. Nxd5 cxd5 $11) (15. Bc4 $1 $14) 15... Qc7 {[%emt 0:02:09]} 16. Ng5 {[%emt 0:14:44] [#] White is more active.} (16. Bxf8 $16 Bxf8 17. Bc4) 16... Rfe8 {[%emt 0:02:37]} (16... Bf5 $1 $11 {remains equal.}) 17. Nxe6 $16 {[%emt 0:01:46]} Rxe6 {[%emt 0:00:25]} 18. Rh3 {[%emt 0:07:05]} ({Better is} 18. g4 $1 $14) 18... Rb8 {[%emt 0:03:54]} 19. Rb3 $36 {[%emt 0:01:27][%mdl 2048] White has some pressure.} Rxb3 {[%emt 0:01:56]} 20. axb3 {[%emt 0:00:11]} e4 {[%emt 0:05:40]} 21. Bc4 {[%emt 0:03:43] This bishop pair is nice.} Rf6 $2 {[%emt 0:05:24]} ({Black should try} 21... Re5 $11) 22. Bxd5 {[%emt 0:04:27]} cxd5 {[%emt 0:00:41]} 23. Qxd5 {[%emt 0:00:43] And now Qd8+ would win.} Kh7 {[%emt 0:01:38] [#] ...Rf5 is the strong threat.} 24. Be3 $1 {[%emt 0:03:41]} Re6 {[%emt 0:01:08]} (24... Bh6 $16 25. Bxh6 (25. Qxe4 Rxf2 26. Bxh6 Kxh6 $16) 25... Kxh6) 25. Kb1 {[%emt 0:02:25]} Ra6 {[%emt 0:06:15]} (25... Qe7 $142 26. Qd7 Qf6) 26. b4 {[%emt 0:03:55]} Qe7 {[%emt 0:00:56]} 27. c3 {[%emt 0:01:03]} Qxh4 $2 {[%emt 0:03:35]} (27... Qc7 28. Qxe4 Re6) 28. Qxf7 $18 {[%emt 0:00:58]} Qg4 {[%emt 0:00:53]} 29. Rd7 {[%emt 0:00:18] Weighted Error Value: White=0.30/Black=0.70} 1-0

[Event "16th HSG Open-A 2022"]
[Site "Hilversum"]
[Date "2022.06.17"]
[Round "2.11"]
[White "Zhu, Chenwu"]
[Black "Lanchava, Tea"]
[Result "0-1"]
[ECO "B15"]
[WhiteElo "2018"]
[BlackElo "2232"]
[Annotator "TA"]
[PlyCount "134"]
[EventDate "2022.06.17"]
[EventCountry "NED"]
[SourceTitle "playchess.com"]
[Source "ChessBase"]
[SourceQuality "1"]
[TimeControl "6600+10"]

{[%evp 10,134,56,49,61,21,14,17,29,-60,0,-52,-62,-72,-26,-24,-24,-25,-13,-15,0,-20,-27,-46,-55,-63,-16,-21,-16,-44,-9,0,7,0,2,-27,39,0,0,0,8,0,0,0,0,0,0,0,0,0,0,0,0,-15,-15,-51,-45,-52,-28,-33,-44,-83,-92,-99,-45,-54,-27,-87,-22,-86,-52,-79,-58,-70,-30,-58,-30,-137,-130,-252,-250,-249,-249,-248,-245,-241,-235,-232,-30,-30,-27,-29,0,0,0,0,0,0,0,0,0,0,0,0,0,0,-6,-889,-895,-1983,-1675,-5222,-4134,-29965,-29966,-29967,-29966,-29967,-29968,-29967,-29962,-29989,-29990,-29990,-29991,-29991,-29988]} 1. e4 {[%emt 0:00:06]} c6 {[%emt 0:00:14]} 2. d4 {[%emt 0:00:08]} g6 {[%emt 0:00:06]} 3. Nc3 {[%emt 0:00:34]} Bg7 {[%emt 0:00:10]} 4. f4 {[%emt 0:00:48]} d5 {[%emt 0:00:11]} 5. e5 {[%emt 0:00:55]} Nh6 {[%emt 0:00:23]} 6. Nf3 {[%emt 0:01:22]} Bg4 {[%emt 0:00:27] B15: Caro-Kann: 3 Nc3: 3...g6 and 3...dxe4 4 Nxe4 Nf6 5 Nxf6+ exf6.} 7. Be2 {[%emt 0:05:11]} (7. h3 $5 {[%cal Rh3g4]} Bxf3 8. Qxf3 $14) 7... Nf5 {[%emt 0:01:31]} 8. O-O {[%emt 0:06:01]} h5 {[%emt 0:06:21] The position is equal.} 9. Ne1 {[%emt 0:07:23] [#]} (9. Qd3 $11) 9... e6 $146 {[%emt 0:04:30]} (9... Qb6 $1 $15) ({Predecessor:} 9... Qb6 10. Nf3 Bxf3 11. Bxf3 Qxd4+ 12. Qxd4 Nxd4 13. Bd1 Nf5 14. Ne2 e6 15. c3 Bf8 {0-1 (29) Strohmeier,J (1867)-Voelker,M (2000) Remote email 2013}) 10. Bxg4 {[%emt 0:04:39]} ({Better is} 10. h3 $11 Bxe2 11. Nxe2) 10... hxg4 $15 {[%emt 0:00:09]} 11. g3 {[%emt 0:00:55] Inhibits Qh4.} Qe7 {[%emt 0:02:13] Black is more active.} (11... Qb6 $17) 12. Ne2 $11 {[%emt 0:07:01]} c5 {[%emt 0:03:53]} 13. c3 {[%emt 0:01:53]} Nc6 {[%emt 0:02:33]} 14. Nc2 {[%emt 0:01:32]} Rc8 {[%emt 0:08:06]} 15. Ne3 {[%emt 0:03:28]} cxd4 {[%emt 0:01:18]} 16. Nxf5 {[%emt 0:00:36]} gxf5 {[%emt 0:00:25]} 17. Nxd4 {[%emt 0:00:16]} Kf8 {[%emt 0:05:47]} (17... Nxd4 $15 18. Qxd4 b6) 18. Be3 {[%emt 0:03:06]} Kg8 {[%emt 0:05:51]} 19. Nxc6 {[%emt 0:01:31]} bxc6 {[%emt 0:02:51]} 20. b4 {[%emt 0:00:54]} f6 {[%emt 0:02:12]} 21. exf6 {[%emt 0:01:39]} Bxf6 {[%emt 0:03:14]} 22. Bd4 {[%emt 0:00:44]} Rh3 {[%emt 0:01:02]} ({Black should play} 22... Bxd4+ $11 23. Qxd4 c5) 23. Bxf6 {[%emt 0:02:28]} Qxf6 {[%emt 0:03:10]} 24. Qd4 {[%emt 0:00:12]} Qh6 {[%emt 0:01:04]} 25. Rf2 {[%emt 0:00:44]} Rc7 {[%emt 0:00:30]} 26. Qe5 {[%emt 0:01:28]} Rh7 {[%emt 0:15:07][%cal Oh3g3] Hoping for ...Rxg3+!} 27. Qb8+ {[%emt 0:02:53]} Qf8 {[%emt 0:00:29]} 28. Qxf8+ {[%emt 0:00:07]} Kxf8 {[%emt 0:00:01][%mdl 4096] Endgame KRR-KRR} 29. Re1 {[%emt 0:01:01]} Ke7 {[%emt 0:00:16]} 30. Rfe2 {[%emt 0:00:46]} R3h6 {[%emt 0:00:05]} 31. Rb1 {[%emt 0:00:52]} Kd6 {[%emt 0:00:33][%cal Oa7a5]} 32. Rbe1 {[%emt 0:00:25]} Rc7 {[%emt 0:00:33]} 33. Rb1 {[%emt 0:01:26][%cal Oc3c4]} Rhh7 {[%emt 0:04:16]} 34. Rbe1 {[%emt 0:00:21]} Rhe7 {[%emt 0:00:19]} 35. Kg2 {[%emt 0:01:29]} c5 {[%emt 0:00:16]} 36. b5 {[%emt 0:01:00][%cal Oc3c4]} Rb7 {[%emt 0:02:55]} (36... a6 $1 $17 37. bxa6 Ra7) 37. a4 {[%emt 0:02:49][%cal Oc3c4]} c4 {[%emt 0:01:17]} (37... a6 $5 38. bxa6 Rb6 $15) 38. Rb1 {[%emt 0:05:04]} (38. h3 $11) 38... Kc5 {[%emt 0:01:12]} ({Black should try} 38... e5 $17 {Threatens to win with ...exf4.} 39. fxe5+ Rxe5) 39. Rbb2 {[%emt 0:02:40]} (39. Rbe1 $11) 39... Rb6 {[%emt 0:00:58]} 40. h4 {[%emt 0:01:28]} gxh3+ $1 {[%emt 0:00:06]} 41. Kxh3 {[%emt 0:00:06]} Rh7+ {[%emt 0:03:08]} 42. Kg2 {[%emt 0:00:14]} Rhb7 {[%emt 0:00:59]} 43. Rb4 {[%emt 0:01:53]} (43. Kf3 $11 {keeps the balance.}) 43... Rd6 $17 {[%emt 0:02:18] aiming for ...d4.} 44. Rbb2 {[%emt 0:05:37]} (44. Re5 $17) 44... a6 $19 {[%emt 0:00:21]} 45. bxa6 {[%emt 0:01:14]} Rxb2 {[%emt 0:00:05]} 46. Rxb2 {[%emt 0:00:03] Rb5+ would kill now.} Rxa6 {[%emt 0:00:09] KR-KR} 47. Rb5+ {[%emt 0:00:07]} Kc6 {[%emt 0:00:11]} 48. Rb4 {[%emt 0:00:23] [#]} Ra5 $2 {[%emt 0:00:47]} (48... Rb6 $1 $19 {[%cal Rb6b4] ...Rxb4 is the strong threat.} 49. Kf3 Kc5) 49. Kf3 {[%emt 0:03:32]} Kc5 {[%emt 0:03:17] White must now prevent ...d4.} 50. Ke3 {[%emt 0:01:04] Against d4+} d4+ {[%emt 0:00:46]} 51. Kd2 {[%emt 0:00:05]} d3 {[%emt 0:01:10]} 52. Ke3 {[%emt 0:00:28]} Kd5 {[%emt 0:00:18]} 53. Kd2 {[%emt 0:01:16]} Ra7 {[%emt 0:00:47]} 54. Rb5+ {[%emt 0:00:19]} Kc6 {[%emt 0:02:26]} 55. Rb4 {[%emt 0:00:15]} Kd5 {[%emt 0:01:31]} 56. Rb5+ {[%emt 0:00:11]} Ke4 {[%emt 0:00:38]} 57. Rb4 {[%emt 0:01:46]} Rc7 {[%emt 0:00:25]} 58. Rb6 $2 {[%emt 0:04:03][%mdl 8192] White does not recover from this.} (58. a5 $11) 58... Kf3 {[%emt 0:01:53]} 59. Rxe6 {[%emt 0:00:32]} Ra7 {[%emt 0:00:54]} 60. Rf6 {[%emt 0:02:50]} Rxa4 {[%emt 0:00:09] Strongly threatening ...Ra2+.} 61. Rxf5 {[%emt 0:00:07]} Ra2+ {[%emt 0:00:08] Black mates.} 62. Kd1 {[%emt 0:01:09] [#]} Rc2 $1 {[%emt 0:00:10]} 63. Re5 {[%emt 0:02:17]} Rxc3 {[%emt 0:00:07]} 64. f5 {[%emt 0:00:08]} Ra3 {[%emt 0:01:56]} 65. Kc1 {[%emt 0:05:45]} c3 {[%emt 0:00:32][%cal Ra3a1,Bc4c3,Bc3c2][%mdl 32]} 66. Kb1 {[%emt 0:00:36]} c2+ {[%emt 0:01:47]} 67. Kb2 {[%emt 0:00:26] [#]} Ra2+ $3 {[%emt 0:00:18][%mdl 512] Weighted Error Value: White=0.47/Black=0.20 (precise)} 0-1

[Event "16th HSG Open-A 2022"]
[Site "Hilversum"]
[Date "2022.06.17"]
[Round "2.12"]
[White "Dekker, Jasper"]
[Black "Tabak, Stefan"]
[Result "0-1"]
[ECO "B22"]
[WhiteElo "1860"]
[BlackElo "2160"]
[Annotator "TA"]
[PlyCount "144"]
[EventDate "2022.06.17"]
[EventCountry "NED"]
[SourceTitle "playchess.com"]
[Source "ChessBase"]
[SourceQuality "1"]
[TimeControl "6600+10"]

{[%evp 9,144,126,128,93,82,22,25,16,24,-5,0,-7,-2,0,0,0,8,-4,0,-64,-58,-62,-61,-54,-56,-61,-65,-107,-102,-116,-112,-178,-179,-189,-170,-213,-216,-297,-295,-272,-192,-273,-255,-242,-240,-237,-243,-276,-273,-262,-208,-418,-350,-464,-439,-431,-321,-320,-296,-449,0,-258,-132,-260,-221,-239,-239,-313,-307,-291,-289,-281,-279,-645,0,0,0,0,0,-16,0,0,0,0,6,8,8,0,0,0,14,0,0,-175,-175,-175,-175,-175,-175,-175,-175,-175,-175,-199,-175,-583,-199,-333,-293,-12847,-12844,-29947,-12538,-10463,-2708,-9974,-9527,-7393,-2590,-29973,-29974,-29971,-29972,-29975,-29972,-29974,-29975,-29974,-29975,-29974,-29971,-29966,-7186,-5458,-386,-29985,-29986]} 1. e4 {[%emt 0:00:03]} c5 {[%emt 0:00:04]} 2. c3 {[%emt 0:00:19]} e5 {[%emt 0:04:11]} 3. Nf3 {[%emt 0:01:26]} Nf6 {[%emt 0:05:52]} 4. Nxe5 {[%emt 0:05:23]} Qe7 {[%emt 0:00:24]} 5. d4 {[%emt 0:00:09]} Nc6 {[%emt 0:02:12] [#]} 6. Bd3 $146 {[%emt 0:04:30] B22: Sicilian: 2 c3.} ({Predecessor:} 6. Nf3 Qxe4+ 7. Be2 cxd4 8. cxd4 Bb4+ 9. Nc3 Nd5 10. Qd2 Bxc3 11. bxc3 O-O 12. O-O {0-1 (32) Shirshova,A (1822)-Safronov,V (1847) Uljanovsk 2009}) 6... cxd4 {[%emt 0:10:53]} 7. Nxc6 {[%emt 0:04:29]} (7. cxd4 $16 {And now Bf4 would win.} Nxd4 8. Nf3) 7... dxc6 $11 {[%emt 0:01:25]} 8. cxd4 {[%emt 0:01:16] White has an edge.} Qb4+ {[%emt 0:12:08]} 9. Bd2 {[%emt 0:04:27]} Qxd4 {[%emt 0:00:16]} 10. Bc3 {[%emt 0:00:07]} Bb4 {[%emt 0:01:23]} 11. O-O {[%emt 0:02:45]} Bxc3 {[%emt 0:00:12]} 12. Nxc3 {[%emt 0:00:11][%cal Oe4e5]} Bg4 {[%emt 0:06:18]} 13. Qc2 {[%emt 0:17:47]} Rd8 {[%emt 0:10:30]} 14. e5 {[%emt 0:12:47]} (14. Be2 $11 O-O 15. Rad1) 14... Qxd3 $15 {[%emt 0:01:52]} 15. Qxd3 {[%emt 0:00:07]} Rxd3 {[%emt 0:00:05]} 16. exf6 {[%emt 0:00:07]} gxf6 {[%emt 0:06:15][%cal Bg7f6,Bf6f5][%mdl 32]} 17. Ne4 {[%emt 0:02:59]} Ke7 {[%emt 0:03:49]} 18. Rae1 {[%emt 0:04:41]} Be6 $1 {[%emt 0:00:31] Black is more active.} 19. f4 {[%emt 0:05:05]} f5 $1 {[%emt 0:00:55]} 20. Nc3 {[%emt 0:05:04]} (20. Nc5 $17 Rd2 21. Rf2 Rxf2 22. Kxf2) 20... Rhd8 $19 {[%emt 0:05:03]} 21. Rf2 {[%emt 0:01:15]} Kf6 {[%emt 0:02:02]} 22. a3 {[%emt 0:04:01]} a5 {[%emt 0:00:44]} 23. g3 {[%emt 0:01:03]} b5 {[%emt 0:00:26]} 24. Rc1 {[%emt 0:00:38]} Rd2 {[%emt 0:01:47]} 25. Rc2 {[%emt 0:01:28]} (25. Nb1 $142 R2d4 26. Rff1) 25... Rxf2 {[%emt 0:00:36]} 26. Kxf2 {[%emt 0:00:45][%mdl 4096] Endgame [#] KRB-KRN} Bb3 $1 {[%emt 0:01:00]} 27. Re2 {[%emt 0:04:51]} b4 {[%emt 0:01:19]} 28. axb4 {[%emt 0:00:14]} axb4 {[%emt 0:00:04]} 29. Nb1 {[%emt 0:00:11]} c5 {[%emt 0:00:25][%cal Bc6c5,Bc5c4][%mdl 32]} 30. Ke3 $2 {[%emt 0:01:14]} (30. Rd2 Rc8 31. Rd7) 30... c4 {[%emt 0:05:02]} 31. Rd2 {[%emt 0:03:01]} Re8+ {[%emt 0:00:42]} 32. Kf2 {[%emt 0:00:01]} Ba2 {[%emt 0:06:01]} 33. Rd1 {[%emt 0:00:01]} Rc8 {[%emt 0:03:10]} 34. Ke3 {[%emt 0:00:25]} (34. Ke2 {keeps fighting.}) 34... Re8+ {[%emt 0:02:02]} (34... c3 $142 {White must now prevent ...c2.} 35. bxc3 Re8+ 36. Kf3 b3) 35. Kf2 $1 {[%emt 0:00:02]} Ra8 {[%emt 0:01:26]} (35... c3 $19 36. bxc3 b3) 36. Ke3 {[%emt 0:02:57]} (36. Nd2 $17) 36... Bb3 {[%emt 0:01:03]} 37. Rd6+ {[%emt 0:01:19]} Ke7 {[%emt 0:05:23]} 38. Rb6 {[%emt 0:00:06]} Ba2 {[%emt 0:00:27]} 39. Nd2 {[%emt 0:01:39]} c3 {[%emt 0:00:03]} 40. bxc3 {[%emt 0:00:30]} bxc3 {[%emt 0:00:05]} 41. Nb3 $2 {[%emt 0:02:22]} (41. Nf3 Rc8 42. Nd4) 41... c2 $2 {[%emt 0:03:11]} (41... Bxb3 $19 42. Rxb3 Rc8) 42. Kd2 $11 {[%emt 0:02:38]} Rc8 {[%emt 0:02:49]} 43. Kc1 {[%emt 0:02:11]} Rc4 {[%emt 0:00:01]} 44. Na5 {[%emt 0:01:02]} Rc3 {[%emt 0:00:09] aiming for ...Bd5.} 45. Nc6+ {[%emt 0:00:17]} Kf8 {[%emt 0:00:04]} 46. Nd4 {[%emt 0:00:32][%csl LRc2,LRf5]} Bb1 {[%emt 0:00:23]} 47. Nxf5 {[%emt 0:00:05] Intending Rb8+ and mate.} Ke8 {[%emt 0:00:19]} 48. Nd6+ {[%emt 0:01:02]} Ke7 {[%emt 0:00:24] Hoping for ...Rd3.} 49. Nf5+ {[%emt 0:00:31]} Kd7 {[%emt 0:00:03]} 50. Rd6+ {[%emt 0:01:44]} Kc7 {[%emt 0:00:01]} 51. Rd2 $2 {[%emt 0:00:25] [#] Black keeps a firm grip on the game.} (51. Rd5 $11 {and White has nothing to worry.}) 51... Rf3 $1 $19 {[%emt 0:00:01]} 52. Rxc2+ {[%emt 0:01:34]} Bxc2 {[%emt 0:00:02]} 53. Kxc2 {[%emt 0:00:00] KR-KN} Rf2+ {[%emt 0:00:27]} 54. Kd3 {[%emt 0:00:04]} Rxh2 {[%emt 0:00:01]} 55. Ke4 {[%emt 0:00:34]} Kd7 {[%emt 0:00:05]} 56. Kf3 {[%emt 0:01:09]} Ke6 {[%emt 0:00:16]} 57. Kg4 {[%emt 0:00:04]} (57. g4 {is tougher.}) 57... Ra2 $2 {[%emt 0:00:34]} (57... Rf2 {Threatens to win with ...Rf1.} 58. Ne3 Ra2) 58. Ng7+ {[%emt 0:00:25]} (58. Ne3 {was forced.}) 58... Kf6 {[%emt 0:00:10]} 59. Nh5+ {[%emt 0:00:01]} (59. Ne8+ Ke7 60. Ng7) 59... Kg6 {[%emt 0:00:41]} 60. f5+ {[%emt 0:04:07]} Kh6 {Strongly threatening ...Rc2.} 61. Nf4 {[%emt 0:00:00]} Ra4 {[%emt 0:00:01]} 62. f6 {[%emt 0:00:00]} Rb4 {[%emt 0:00:14]} 63. Kf5 {[%emt 0:00:00]} Rb5+ {[%emt 0:00:06]} 64. Ke4 {[%emt 0:00:00]} Kg5 {[%emt 0:00:08]} 65. Nd5 {[%emt 0:00:00]} h6 {[%emt 0:00:26]} 66. Nc3 {[%emt 0:00:00]} Ra5 {[%emt 0:00:13]} 67. Nd5 {[%emt 0:00:00]} Ra3 {[%emt 0:00:33]} 68. Ne3 {[%emt 0:00:00]} Kxf6 {[%emt 0:00:11]} 69. Kf4 {[%emt 0:00:01]} Ra4+ {[%emt 0:00:07]} 70. Kf3 {[%emt 0:00:07]} Kg5 {[%emt 0:00:01] ( -> ...Ra3)} 71. Kg2 {[%emt 0:00:17]} Ra3 $2 {[%emt 0:00:05]} (71... Rd4 {...Rd3 is the strong threat.} 72. Nf1 h5) 72. Nc2 $2 {[%emt 0:00:08]} (72. Nd1 $19 Rd3 73. Nf2) 72... Ra2 {[%emt 0:00:02] Weighted Error Value: White=0.61/Black=0.36} 0-1